fUSD/lending_fUSD_20241003
["ID","MTS","AMOUNT","RATE_DAILY","PERIOD"]
[339785602,1727987461879,-500.0,0.0003315,120]
[339785603,1727987461892,-500.0,0.0003315,120]
[339785604,1727987461905,-2782.16,0.0003315,120]
[339785605,1727987461918,-500.0,0.0003315,120]
[339785606,1727987461928,-500.0,0.0003315,120]
[339785607,1727987461938,-500.0,0.0003315,120]
[339785608,1727987461949,-500.0,0.0003315,120]
[339785609,1727987461959,-500.0,0.0003315,120]
[339785610,1727987461972,-799.66,0.0003315,120]
[339785611,1727987461986,-528.54,0.0003315,120]
[339785612,1727987461999,-500.0,0.0003315,120]
[339785613,1727987462012,-500.0,0.0003315,120]
[339785614,1727987462022,-1116.48,0.0003315,120]
[339785615,1727987462034,-209.26308804,0.0003315,120]
[339785616,1727987462047,-500.0,0.0003315,120]
[339785617,1727987462058,-500.0,0.0003315,120]
[339785618,1727987462072,-500.0,0.0003315,120]
[339785619,1727987462083,-500.0,0.0003315,120]
[339785620,1727987462097,-500.0,0.0003315,120]
[339785621,1727987462109,-667.6,0.0003315,120]
[339785622,1727987462122,-516.86,0.0003315,120]
[339785623,1727987462134,-448.340669,0.0003315,7]
[339785624,1727987462147,-500.0,0.0003315,120]
[339785625,1727987462158,-577.36,0.0003315,120]
[339785626,1727987462170,-151.0,0.0003315,7]
[339785627,1727987462183,-500.0,0.0003315,120]
[339785628,1727987462194,-448.340669,0.0003315,7]
[339785629,1727987462206,-151.0,0.0003315,7]
[339785630,1727987462217,-2275.0,0.0003315,120]
[339785631,1727987462227,-500.0,0.0003315,120]
[339785632,1727987462239,-1181.76,0.0003315,120]
[339785633,1727987462250,-1059.01,0.0003315,120]
[339785634,1727987462261,-500.0,0.0003315,120]
[339785635,1727987462271,-316.28097,0.0003315,7]
[339785636,1727987462282,-678.32,0.0003315,120]
[339785637,1727987462293,-500.0,0.0003315,120]
[339785638,1727987462304,-500.0,0.0003315,120]
[339785639,1727987462316,-908.96,0.0003315,120]
[339785640,1727987462327,-316.28097,0.0003315,7]
[339785641,1727987462338,-806.47,0.0003315,120]
[339785642,1727987462350,-181.278868,0.0003315,7]
[339785643,1727987462362,-500.0,0.0003315,120]
[339785644,1727987462374,-1850.2,0.0003315,120]
[339785645,1727987462386,-500.0,0.0003315,120]
[339785646,1727987462398,-181.278868,0.0003315,7]
[339785647,1727987462409,-500.0,0.0003315,120]
[339785648,1727987462421,-500.0,0.0003315,120]
[339785649,1727987462432,-500.0,0.0003315,120]
[339785650,1727987462443,-532.65,0.0003315,120]
[339785651,1727987462454,-500.0,0.0003315,120]
[339785652,1727987462466,-500.0,0.0003315,120]
[339785653,1727987462477,-500.0,0.0003315,120]
[339785654,1727987462488,-500.0,0.0003315,120]
[339785655,1727987462500,-951.98,0.0003315,120]
[339785656,1727987462511,-3113.1,0.0003315,120]
[339785657,1727987462523,-500.0,0.0003315,120]
[339785658,1727987462535,-1578.27,0.0003315,120]
[339785659,1727987462546,-952.18,0.0003315,120]
[339785660,1727987462558,-799.85,0.0003315,120]
[339785661,1727987462570,-500.0,0.0003315,120]
[339785662,1727987462582,-708.6,0.0003315,120]
[339785663,1727987462592,-584.82,0.0003315,120]
[339785664,1727987462603,-500.0,0.0003315,120]
[339785665,1727987462614,-560.83,0.0003315,120]
[339785666,1727987462626,-500.0,0.0003315,120]
[339785667,1727987462637,-610.78,0.0003315,120]
[339785668,1727987462648,-500.0,0.0003315,120]
[339785669,1727987462659,-1249.01,0.0003315,120]
[339785670,1727987462670,-500.0,0.0003315,120]
[339785671,1727987462682,-500.0,0.0003315,120]
[339785672,1727987462692,-500.0,0.0003315,120]
[339785673,1727987462703,-500.0,0.0003315,120]
[339785674,1727987462714,-151.0,0.0003315,7]
[339785675,1727987462725,-500.0,0.0003315,120]
[339785676,1727987462736,-1225.26,0.0003315,120]
[339785677,1727987462747,-151.0,0.0003315,7]
[339785678,1727987462758,-500.0,0.0003315,120]
[339785679,1727987462769,-500.0,0.0003315,120]
[339785680,1727987462780,-151.0,0.0003315,7]
[339785681,1727987462791,-911.79,0.0003315,120]
[339785682,1727987462802,-817.82,0.0003315,120]
[339785683,1727987462812,-520.85267118,0.0003315,120]
[339785684,1727987462823,-500.0,0.0003315,120]
[339785685,1727987462838,-500.0,0.0003315,120]
[339785686,1727987462850,-500.0,0.0003315,120]
[339785687,1727987462860,-517.59,0.0003315,120]
[339785688,1727987462872,-1292.49,0.0003315,7]
[339785689,1727987462883,-500.0,0.0003315,120]
[339785690,1727987462894,-500.0,0.0003315,120]
[339785691,1727987462904,-500.0,0.0003315,120]
[339785692,1727987462917,-500.0,0.0003315,120]
[339785693,1727987462928,-762.72,0.0003315,120]
[339785694,1727987462939,-1396.71,0.0003315,120]
[339785695,1727987462949,-1184.87,0.0003315,120]
[339785696,1727987462960,-1701.57,0.0003315,120]
[339785697,1727987462971,-714.2,0.0003315,120]
[339785698,1727987462987,-500.0,0.0003315,120]
[339785699,1727987462997,-500.0,0.0003315,120]
[339785700,1727987463008,-500.0,0.0003315,120]
[339785701,1727987463019,-1713.42,0.0003315,120]
[339785702,1727987463030,-676.51,0.0003315,120]
[339785703,1727987463041,-543.4,0.0003315,120]
[339785704,1727987463051,-675.57,0.0003315,120]
[339785705,1727987463062,-615.69,0.0003315,120]
[339785706,1727987463072,-822.0,0.0003315,120]
[339785707,1727987463083,-507.05111229,0.0003315,120]
[339785708,1727987463093,-781.4,0.0003315,120]
[339785709,1727987463104,-500.0,0.0003315,120]
[339785710,1727987463115,-500.0,0.0003315,120]
[339785711,1727987463127,-500.0,0.0003315,120]
[339785712,1727987463139,-747.69,0.0003315,120]
[339785713,1727987463150,-500.0,0.0003315,120]
[339785714,1727987463160,-617.77,0.0003315,120]
[339785715,1727987463171,-500.0,0.0003315,120]
[339785716,1727987463181,-911.34,0.0003315,120]
[339785717,1727987463192,-500.0,0.0003315,120]
[339785718,1727987463202,-151.0,0.0003315,7]
[339785719,1727987463213,-500.0,0.0003315,120]
[339785720,1727987463224,-500.0,0.0003315,120]
[339785721,1727987463234,-1099.61,0.0003315,120]
[339785722,1727987463246,-500.0,0.0003315,120]
[339785723,1727987463256,-500.0,0.0003315,120]
[339785724,1727987463267,-500.0,0.0003315,120]
[339785725,1727987463278,-1245.73,0.0003315,120]
[339785726,1727987463289,-605.0,0.0003315,120]
[339785727,1727987463299,-570.35,0.0003315,120]
[339785728,1727987463310,-614.52,0.0003315,120]
[339785729,1727987463320,-806.75,0.0003315,120]
[339785730,1727987463331,-500.0,0.0003315,120]
[339785731,1727987463342,-761.4,0.0003315,120]
[339785732,1727987463353,-500.0,0.0003315,120]
[339785733,1727987463363,-500.0,0.0003315,120]
[339785734,1727987463373,-500.0,0.0003315,120]
[339785735,1727987463384,-1016.56,0.0003315,120]
[339785736,1727987463394,-500.0,0.0003315,120]
[339785737,1727987463404,-500.0,0.0003315,120]
[339785738,1727987463414,-500.0,0.0003315,120]
[339785739,1727987463424,-908.19,0.0003315,120]
[339785740,1727987463435,-168.08002981,0.0003315,120]
[339785741,1727987463445,-500.0,0.0003315,120]
[339785742,1727987463455,-500.0,0.0003315,120]
[339785743,1727987463465,-20040.41662541,0.0003315,2]
[339785744,1727987463477,-500.0,0.0003315,120]
[339785745,1727987463487,-650.02,0.0003315,120]
[339785746,1727987463499,-2907.54,0.0003315,120]
[339785747,1727987463510,-500.0,0.0003315,120]
[339785748,1727987463521,-1955.84,0.0003315,120]
[339785749,1727987463533,-666.23,0.0003315,120]
[339785750,1727987463543,-500.0,0.0003315,5]
[339785751,1727987463555,-1768.990651,0.0003315,7]
[339785752,1727987463566,-500.0,0.0003315,120]
[339785753,1727987463577,-619.0,0.0003315,120]
[339785754,1727987463588,-502.79251331,0.0003315,120]
[339785755,1727987463599,-1768.990651,0.0003315,7]
[339785756,1727987463611,-1476.07,0.0003315,120]
[339785757,1727987463622,-500.0,0.0003315,120]
[339785758,1727987463635,-200.0,0.0003315,7]
[339785759,1727987463650,-580.92,0.0003315,120]
[339785760,1727987463662,-380.51351874,0.0003315,120]
[339785761,1727987463673,-664.13,0.0003315,120]
[339785762,1727987463685,-559.23,0.0003315,120]
[339785763,1727987463697,-500.0,0.0003315,120]
[339785764,1727987463708,-500.0,0.0003315,120]
[339785765,1727987463720,-682.12,0.0003315,120]
[339785766,1727987463732,-662.07,0.0003315,120]
[339785767,1727987463744,-500.0,0.0003315,120]
[339785768,1727987463756,-500.0,0.0003315,120]
[339785769,1727987463768,-500.0,0.0003315,120]
[339785770,1727987463779,-500.0,0.0003315,120]
[339785771,1727987463790,-1017.64,0.0003315,120]
[339785772,1727987463801,-1843.32,0.0003315,120]
[339785773,1727987463812,-929.85,0.0003315,120]
[339785774,1727987463823,-500.0,0.0003315,120]
[339785775,1727987463843,-903.96,0.0003315,120]
[339785776,1727987463854,-500.0,0.0003315,120]
[339785777,1727987463866,-500.0,0.0003315,120]
[339785778,1727987463878,-1244.9,0.0003315,120]
[339785779,1727987463890,-500.0,0.0003315,120]
[339785780,1727987463901,-2059.5,0.0003315,120]
[339785781,1727987463913,-1208.85,0.0003315,120]
[339785782,1727987463924,-500.0,0.0003315,120]
[339785783,1727987463935,-151.0,0.0003315,7]
[339785784,1727987463947,-1392.18,0.0003315,120]
[339785785,1727987463958,-151.0,0.0003315,7]
[339785786,1727987463969,-500.0,0.0003315,120]
[339785787,1727987463982,-1754.22,0.0003315,120]
[339785788,1727987463992,-500.0,0.0003315,120]
[339785789,1727987464003,-500.0,0.0003315,120]
[339785790,1727987464014,-3096.26,0.0003315,120]
[339785791,1727987464025,-838.34,0.0003315,120]
[339785792,1727987464036,-500.0,0.0003315,120]
[339785793,1727987464047,-767.37,0.0003315,120]
[339785794,1727987464057,-801.012603,0.0003315,7]
[339785795,1727987464068,-1262.93,0.0003315,120]
[339785796,1727987464079,-500.0,0.0003315,120]
[339785797,1727987464090,-500.0,0.0003315,120]
[339785798,1727987464101,-801.012603,0.0003315,7]
[339785799,1727987464112,-900.49,0.0003315,120]
[339785800,1727987464123,-871.88,0.0003315,120]
[339785801,1727987464135,-1915.72,0.0003315,120]
[339785802,1727987464146,-546.33,0.0003315,120]
[339785803,1727987464156,-500.0,0.0003315,120]
[339785804,1727987464166,-542.05,0.0003315,120]
[339785805,1727987464177,-500.0,0.0003315,120]
[339785806,1727987464189,-1246.58,0.0003315,120]
[339785807,1727987464199,-755.2,0.0003315,120]
[339785808,1727987464210,-500.0,0.0003315,120]
[339785809,1727987464220,-515.39,0.0003315,120]
[339785810,1727987464231,-500.0,0.0003315,120]
[339785811,1727987464242,-1449.61,0.0003315,120]
[339785812,1727987464253,-500.0,0.0003315,120]
[339785813,1727987464264,-615.97,0.0003315,120]
[339785814,1727987464274,-500.0,0.0003315,120]
[339785815,1727987464285,-500.0,0.0003315,120]
[339785816,1727987464296,-500.0,0.0003315,2]
[339785817,1727987464306,-500.0,0.0003315,120]
[339785818,1727987464317,-828.98,0.0003315,120]
[339785819,1727987464329,-522.48,0.0003315,120]
[339785820,1727987464339,-500.0,0.0003315,120]
[339785821,1727987464350,-500.0,0.0003315,120]
[339785822,1727987464361,-769.93,0.0003315,120]
[339785823,1727987464372,-500.0,0.0003315,120]
[339785824,1727987464384,-1535.42,0.0003315,120]
[339785825,1727987464395,-692.01,0.0003315,120]
[339785826,1727987464406,-500.0,0.0003315,120]
[339785827,1727987464418,-500.0,0.0003315,120]
[339785828,1727987464428,-500.0,0.0003315,120]
[339785829,1727987464439,-500.0,0.0003315,120]
[339785830,1727987464450,-500.0,0.0003315,120]
[339785831,1727987464462,-500.0,0.0003315,120]
[339785832,1727987464472,-617.57,0.0003315,120]
[339785833,1727987464483,-500.0,0.0003315,120]
[339785834,1727987464493,-500.0,0.0003315,120]
[339785835,1727987464504,-775.222596,0.0003315,7]
[339785836,1727987464515,-1322.47,0.0003315,120]
[339785837,1727987464525,-775.222596,0.0003315,7]
[339785838,1727987464536,-678.3,0.0003315,120]
[339785839,1727987464547,-3041.51,0.0003315,120]
[339785840,1727987464557,-1088.33,0.0003315,120]
[339785841,1727987464567,-775.222596,0.0003315,7]
[339785842,1727987464578,-775.222596,0.0003315,7]
[339785843,1727987464589,-685.28,0.0003315,120]
[339785844,1727987464599,-500.0,0.0003315,120]
[339785845,1727987464610,-809.97,0.0003315,120]
[339785846,1727987464621,-617.35,0.0003315,120]
[339785847,1727987464632,-500.0,0.0003315,120]
[339785848,1727987464643,-500.0,0.0003315,120]
[339785849,1727987464653,-500.0,0.0003315,120]
[339785850,1727987464664,-500.0,0.0003315,120]
[339785851,1727987464675,-504.49,0.0003315,120]
[339785852,1727987464686,-1000.0,0.0003315,120]
[339785853,1727987464697,-2582.55,0.0003315,14]
[339785854,1727987464708,-821.22,0.0003315,120]
[339785855,1727987464718,-2036.76,0.0003315,2]
[339785856,1727987464729,-502.58000674,0.0003315,120]
[339785857,1727987464740,-500.0,0.0003315,120]
[339785858,1727987464750,-500.0,0.0003315,120]
[339785859,1727987464760,-752.83,0.0003315,120]
[339785860,1727987464771,-1192.92,0.0003315,120]
[339785861,1727987464783,-500.0,0.0003315,120]
[339785862,1727987464794,-500.0,0.0003315,120]
[339785863,1727987464805,-500.0,0.0003315,120]
[339785864,1727987464816,-500.0,0.0003315,120]
[339785865,1727987464828,-2184.089244,0.0003315,7]
[339785866,1727987464843,-1822.29,0.0003315,120]
[339785867,1727987464855,-2184.089244,0.0003315,7]
[339785868,1727987464865,-696.33,0.0003315,120]
[339785869,1727987464877,-500.0,0.0003315,120]
[339785870,1727987464888,-1595.23,0.0003315,120]
[339785871,1727987464899,-1676.96,0.0003315,120]
[339785872,1727987464910,-500.0,0.0003315,120]
[339785873,1727987464923,-2184.089244,0.0003315,7]
[339785874,1727987464933,-2184.089244,0.0003315,7]
[339785875,1727987465551,-602.51,0.0003315,120]
[339785876,1727987465574,-500.0,0.0003315,120]
[339785877,1727987465597,-1430.65,0.0003315,120]
[339785878,1727987465613,-10000.0,0.0003315,7]
[339785879,1727987465623,-500.0,0.0003315,120]
[339785880,1727987465632,-500.0,0.0003315,120]
[339785881,1727987465642,-10000.0,0.0003315,7]
[339785882,1727987465651,-1022.58,0.0003315,120]
[339785883,1727987465662,-534.34,0.0003315,120]
[339785884,1727987465671,-572.51,0.0003315,120]
[339785885,1727987465680,-500.0,0.0003315,120]
[339785886,1727987465690,-500.0,0.0003315,120]
[339785887,1727987465699,-743.36,0.0003315,120]
[339785888,1727987465708,-500.0,0.0003315,120]
[339785889,1727987465718,-10000.0,0.0003315,7]
[339785890,1727987465728,-722.75,0.0003315,120]
[339785891,1727987465738,-734.12,0.0003315,120]
[339785892,1727987465747,-500.0,0.0003315,120]
[339785893,1727987465756,-2933.87,0.0003315,120]
[339785894,1727987465766,-500.0,0.0003315,120]
[339785895,1727987465775,-891.75,0.0003315,120]
[339785896,1727987465784,-500.0,0.0003315,120]
[339785897,1727987465793,-10000.0,0.0003315,7]
[339785898,1727987465803,-500.0,0.0003315,120]
[339785899,1727987465813,-500.0,0.0003315,120]
[339785900,1727987465822,-500.0,0.0003315,120]
[339785901,1727987465834,-10000.0,0.0003315,7]
[339785902,1727987465844,-500.0,0.0003315,120]
[339785903,1727987465853,-830.44,0.0003315,120]
[339785904,1727987465863,-2736.92,0.0003315,120]
[339785905,1727987465873,-2840.63,0.0003315,120]
[339785906,1727987465883,-1668.6,0.0003315,120]
[339785907,1727987465892,-963.2,0.0003315,120]
[339785908,1727987465901,-3064.64,0.0003315,120]
[339785909,1727987465913,-500.0,0.0003315,120]
[339785910,1727987465922,-500.0,0.0003315,120]
[339785911,1727987465932,-500.0,0.0003315,120]
[339785912,1727987465942,-500.0,0.0003315,120]
[339785913,1727987465951,-895.53,0.0003315,120]
[339785914,1727987465961,-500.0,0.0003315,120]
[339785915,1727987465970,-594.854743,0.0003315,7]
[339785916,1727987465979,-594.854743,0.0003315,7]
[339785917,1727987465989,-603.25,0.0003315,120]
[339785918,1727987465999,-893.66,0.0003315,120]
[339785919,1727987466008,-1265.22,0.0003315,120]
[339785920,1727987466018,-594.854743,0.0003315,7]
[339785921,1727987466027,-648.93,0.0003315,120]
[339785922,1727987466037,-594.854743,0.0003315,7]
[339785923,1727987466046,-702.69,0.0003315,120]
[339785924,1727987466056,-625.95,0.0003315,120]
[339785925,1727987466065,-912.75,0.0003315,120]
[339785926,1727987466075,-500.0,0.0003315,120]
[339785927,1727987466084,-500.0,0.0003315,120]
[339785928,1727987466094,-500.0,0.0003315,120]
[339785929,1727987466103,-500.0,0.0003315,120]
[339785930,1727987466113,-500.0,0.0003315,120]
[339785931,1727987466122,-500.0,0.0003315,120]
[339785932,1727987466132,-500.0,0.0003315,120]
[339785933,1727987466142,-589.87,0.0003315,120]
[339785934,1727987466152,-500.0,0.0003315,120]
[339785935,1727987466161,-904.15,0.0003315,120]
[339785936,1727987466170,-809.38,0.0003315,120]
[339785937,1727987466179,-500.0,0.0003315,120]
[339785938,1727987466189,-500.0,0.0003315,120]
[339785939,1727987466198,-1583.67,0.0003315,120]
[339785940,1727987466207,-500.0,0.0003315,120]
[339785941,1727987466216,-515.75533906,0.0003315,120]
[339785942,1727987466226,-2849.48,0.0003315,120]
[339785943,1727987466235,-1559.78,0.0003315,120]
[339785944,1727987466244,-500.0,0.0003315,2]
[339785945,1727987466253,-526.9,0.0003315,120]
[339785946,1727987466263,-500.0,0.0003315,120]
[339785947,1727987466272,-522.66,0.0003315,120]
[339785948,1727987466281,-887.97,0.0003315,120]
[339785949,1727987466291,-608.69,0.0003315,120]
[339785950,1727987466300,-1196.23,0.0003315,120]
[339785951,1727987466309,-500.0,0.0003315,120]
[339785952,1727987466318,-871.817102,0.0003315,7]
[339785953,1727987466327,-1435.23,0.0003315,120]
[339785954,1727987466336,-871.817102,0.0003315,7]
[339785955,1727987466346,-151.0,0.0003315,7]
[339785956,1727987466355,-1891.17,0.0003315,120]
[339785957,1727987466364,-734.62,0.0003315,120]
[339785958,1727987466374,-871.817102,0.0003315,7]
[339785959,1727987466383,-500.0,0.0003315,5]
[339785960,1727987466393,-871.817102,0.0003315,7]
[339785961,1727987466402,-1907.44,0.0003315,120]
[339785962,1727987466411,-954.92,0.0003315,30]
[339785963,1727987466421,-1389.631609,0.0003315,7]
[339785964,1727987466430,-1389.631609,0.0003315,7]
[339785965,1727987466439,-760.37,0.0003315,120]
[339785966,1727987466449,-500.0,0.0003315,120]
[339785967,1727987466458,-1267.83,0.0003315,120]
[339785968,1727987466467,-500.0,0.0003315,120]
[339785969,1727987466476,-500.0,0.0003315,120]
[339785970,1727987466485,-1389.631609,0.0003315,7]
[339785971,1727987466494,-500.0,0.0003315,120]
[339785972,1727987466504,-1389.631609,0.0003315,7]
[339785973,1727987466513,-3152.28,0.0003315,120]
[339785974,1727987466522,-2240.67,0.0003315,120]
[339785975,1727987466531,-500.0,0.0003315,120]
[339785976,1727987466540,-692.31,0.0003315,120]
[339785977,1727987466549,-4273.85,0.0003315,2]
[339785978,1727987466558,-500.0,0.0003315,120]
[339785979,1727987466567,-1375.15,0.0003315,120]
[339785980,1727987466577,-566.42,0.0003315,120]
[339785981,1727987466587,-500.0,0.0003315,120]
[339785982,1727987466596,-1352.94,0.0003315,120]
[339785983,1727987466606,-2143.59,0.0003315,120]
[339785984,1727987466615,-197.419055,0.0003315,7]
[339785985,1727987466626,-197.419055,0.0003315,7]
[339785986,1727987466639,-500.0,0.0003315,120]
[339785987,1727987466648,-500.0,0.0003315,120]
[339785988,1727987466657,-197.419055,0.0003315,7]
[339785989,1727987466667,-197.419055,0.0003315,7]
[339785990,1727987466676,-366.010612,0.0003315,7]
[339785991,1727987466686,-500.0,0.0003315,120]
[339785992,1727987466697,-366.010612,0.0003315,7]
[339785993,1727987466709,-500.0,0.0003315,120]
[339785994,1727987466718,-2552.25,0.0003315,120]
[339785995,1727987466729,-500.0,0.0003315,120]
[339785996,1727987466740,-807.0,0.0003315,120]
[339785997,1727987466751,-366.010612,0.0003315,7]
[339785998,1727987466761,-1929.43,0.0003315,120]
[339785999,1727987466770,-500.0,0.0003315,120]
[339786000,1727987466780,-366.010612,0.0003315,7]
[339786001,1727987466791,-500.0,0.0003315,120]
[339786002,1727987466802,-687.7,0.0003315,120]
[339786003,1727987466812,-500.0,0.0003315,120]
[339786004,1727987466822,-500.0,0.0003315,120]
[339786005,1727987466834,-685.66,0.0003315,120]
[339786006,1727987466844,-500.0,0.0003315,120]
[339786007,1727987466853,-500.0,0.0003315,120]
[339786008,1727987466862,-426.78146,0.0003315,7]
[339786009,1727987466871,-500.0,0.0003315,120]
[339786010,1727987466883,-426.78146,0.0003315,7]
[339786011,1727987466892,-500.0,0.0003315,120]
[339786012,1727987466901,-1124.73,0.0003315,120]
[339786013,1727987466910,-500.0,0.0003315,120]
[339786014,1727987466920,-687.49,0.0003315,120]
[339786015,1727987466930,-426.78146,0.0003315,7]
[339786016,1727987466941,-426.78146,0.0003315,7]
[339786017,1727987466951,-1267.04,0.0003315,120]
[339786018,1727987466962,-1073.96,0.0003315,120]
[339786019,1727987466971,-551.1299485,0.0003315,120]
[339786020,1727987466980,-515.88,0.0003315,120]
[339786021,1727987466990,-500.0,0.0003315,120]
[339786022,1727987467000,-924.47,0.0003315,120]
[339786023,1727987467011,-3842.317748,0.0003315,7]
[339786024,1727987467021,-3842.317748,0.0003315,7]
[339786025,1727987467032,-500.0,0.0003315,120]
[339786026,1727987467041,-3529.62,0.0003315,120]
[339786027,1727987467050,-500.0,0.0003315,120]
[339786028,1727987467059,-500.0,0.0003315,120]
[339786029,1727987467069,-3842.317748,0.0003315,7]
[339786030,1727987467078,-3842.317748,0.0003315,7]
[339786031,1727987467088,-500.0,0.0003315,120]
[339786032,1727987467097,-2122.92,0.0003315,120]
[339786033,1727987467106,-500.0,0.0003315,120]
[339786034,1727987467115,-1443.8,0.0003315,120]
[339786035,1727987467125,-500.0,0.0003315,120]
[339786036,1727987467136,-598.1,0.0003315,120]
[339786037,1727987467145,-583.93,0.0003315,120]
[339786038,1727987467155,-1130.17,0.0003315,120]
[339786039,1727987467164,-500.0,0.0003315,120]
[339786040,1727987467173,-500.0,0.0003315,120]
[339786041,1727987467183,-500.0,0.0003315,120]
[339786042,1727987467192,-500.0,0.0003315,120]
[339786043,1727987467201,-512.25,0.0003315,120]
[339786044,1727987467211,-500.0,0.0003315,120]
[339786045,1727987467220,-739.66,0.0003315,120]
[339786046,1727987467229,-500.0,0.0003315,120]
[339786047,1727987467239,-2221.7,0.0003315,120]
[339786048,1727987467249,-500.0,0.0003315,120]
[339786049,1727987467258,-500.0,0.0003315,120]
[339786050,1727987467268,-500.0,0.0003315,120]
[339786051,1727987467278,-151.0,0.0003315,7]
[339786052,1727987467289,-151.0,0.0003315,7]
[339786053,1727987467299,-500.0,0.0003315,120]
[339786054,1727987467309,-500.0,0.0003315,120]
[339786055,1727987467319,-500.0,0.0003315,120]
[339786056,1727987467329,-878.47,0.0003315,120]
[339786057,1727987467338,-753.47,0.0003315,120]
[339786058,1727987467347,-2105.23,0.0003315,120]
[339786059,1727987467357,-500.0,0.0003315,120]
[339786060,1727987467366,-880.23,0.0003315,120]
[339786061,1727987467376,-500.0,0.0003315,120]
[339786062,1727987467386,-150.0,0.0003315,120]
[339786063,1727987467400,-1101.24,0.0003315,120]
[339786064,1727987467410,-500.0,0.0003315,120]
[339786065,1727987467419,-1000.0,0.0003315,120]
[339786066,1727987467428,-503.81012243,0.0003315,120]
[339786067,1727987467440,-594.49,0.0003315,120]
[339786068,1727987467449,-500.0,0.0003315,120]
[339786069,1727987467459,-500.0,0.0003315,120]
[339786070,1727987467468,-1746.33,0.0003315,120]
[339786071,1727987467478,-500.0,0.0003315,120]
[339786072,1727987467486,-983.59,0.0003315,120]
[339786073,1727987467495,-242.76302515,0.0003315,120]
[339786074,1727987467505,-500.0,0.0003315,120]
[339786075,1727987467514,-1535.26,0.0003315,120]
[339786076,1727987467523,-754.45,0.0003315,120]
[339786077,1727987467533,-889.14,0.0003315,120]
[339786078,1727987467542,-3156.06,0.0003315,120]
[339786079,1727987467552,-500.0,0.0003315,120]
[339786080,1727987467562,-2375.19,0.0003315,120]
[339786081,1727987467573,-640.32,0.0003315,120]
[339786082,1727987467583,-500.0,0.0003315,120]
[339786083,1727987467594,-500.0,0.0003315,120]
[339786084,1727987467606,-500.0,0.0003315,120]
[339786085,1727987467617,-652.15,0.0003315,120]
[339786086,1727987467628,-580.84,0.0003315,120]
[339786087,1727987467640,-2171.15,0.0003315,120]
[339786088,1727987467650,-970.9,0.0003315,120]
[339786089,1727987467659,-500.0,0.0003315,120]
[339786090,1727987467668,-576.98,0.0003315,120]
[339786091,1727987467678,-2322.76,0.0003315,120]
[339786092,1727987467688,-500.0,0.0003315,120]
[339786093,1727987467697,-500.0,0.0003315,120]
[339786094,1727987467706,-2446.1,0.0003315,120]
[339786095,1727987467716,-500.0,0.0003315,120]
[339786096,1727987467726,-500.0,0.0003315,120]
[339786097,1727987467737,-569.39,0.0003315,120]
[339786098,1727987467748,-503.8447695,0.0003315,120]
[339786099,1727987467760,-500.0,0.0003315,120]
[339786100,1727987467770,-500.0,0.0003315,120]
[339786101,1727987467779,-865.83,0.0003315,120]